bitfinex-derivatives/quotes_ETHF0:USTF0_20251003
["timestamp","ask_amount","ask_price","bid_price","bid_amount"]
[1759511643804,4.93119079,4524.7,4524.0,0.07]
[1759511644005,4.93119079,4524.7,4524.1,3.2078]
[1759511644805,5.32872079,4524.7,4524.1,3.2078]
[1759511646212,1.9791,4524.4,4523.6,3.2078]
[1759511646414,1.9791,4523.9,4523.3,0.07]
[1759511646812,0.7681,4524.5,4523.8,0.39761]
[1759511646813,2.0491,4524.1,4523.8,0.39761]
[1759511647104,0.46754,4524.6,4523.9,2.0278]
[1759511647312,0.39756,4524.4,4523.9,2.0278]
[1759511647505,0.07,4524.3,4523.8,0.00165992]
[1759511647705,1.9791,4523.9,4523.0,3.2078]
[1759511647900,0.39763,4523.6,4522.9,3.2078]
[1759511648106,0.07,4523.5,4522.9,3.2078]
[1759511648304,2.93308334,4523.5,4523.4,5.2356]
[1759511648504,1.9791,4524.2,4523.4,10.3056]
[1759511648706,1.9791,4524.2,4523.5,1.19574]
[1759511648906,1.9791,4524.2,4523.8,0.39761]
[1759511649111,1.9791,4524.2,4523.6,2.0278]
[1759511649513,3.9759,4524.5,4523.5,0.8006636]
[1759511649514,1.9791,4524.4,4523.8,2.0278]
[1759511649709,3.60536,4524.5,4523.9,0.07]
[1759511649908,3.60536,4524.5,4523.5,1.1983036]
[1759511649909,1.9791,4524.4,4524.0,3.60539]
[1759511650106,2.37662,4524.9,4524.0,3.2078]
[1759511650307,4.8432225,4524.9,4524.1,2.0278]
[1759511650506,3.2078,4525.0,4524.4,0.39756]
[1759511650903,1.9791,4525.4,4524.7,2.42533]
[1759511651116,3.67526,4525.6,4524.8,0.46752]
[1759511651311,2.88492332,4525.4,4525.0,0.3975]
[1759511651612,2.88492332,4525.5,4525.1,3.2078]
[1759511651813,0.07,4526.3,4525.2,2.0978]
[1759511652016,2.3765,4526.3,4525.6,3.2078]
[1759511652212,2.3765,4526.3,4525.6,5.3056]
[1759511652521,1.9791,4526.3,4525.6,5.3056]
[1759511652913,0.00283811,4526.4,4525.7,2.0278]
[1759511653211,0.00283811,4526.4,4525.6,3.2778]
[1759511653212,0.00283811,4526.4,4525.8,0.39743]
[1759511653421,0.00283811,4526.4,4525.7,0.39744]
[1759511653615,0.00283811,4526.4,4525.7,2.0278]
[1759511654211,0.00283811,4526.4,4525.8,0.39743]
[1759511654414,0.00283811,4526.4,4525.9,0.07]
[1759511654718,1.9791,4526.3,4526.0,2.0278]
[1759511654915,0.00283811,4526.4,4526.0,2.0278]
[1759511655114,0.00283811,4526.4,4526.3,2.0278]
[1759511655314,0.00283811,4526.4,4526.3,2.0978]
[1759511655611,1.98193811,4526.4,4526.3,0.07]
[1759511655811,0.00283811,4526.4,4526.3,0.07]
[1759511656213,1.98193811,4526.4,4526.2,3.2078]
[1759511656411,1.9791,4526.3,4526.2,3.2078]
[1759511656611,0.00283811,4526.4,4526.3,2.42519]
[1759511657112,0.00283811,4526.4,4526.3,2.0278]
[1759511657310,0.00283811,4526.4,4526.3,2.0978]
[1759511657923,3.2298,4527.9,4526.9,0.39734]
[1759511658219,2.89528341,4527.4,4527.0,0.07]
[1759511658413,1.9791,4527.3,4527.1,2.0278]
[1759511658620,1.9791,4527.8,4527.0,0.07]
[1759511658811,1.98179723,4527.8,4527.0,0.07252908]
[1759511659012,1.9791,4527.5,4527.0,0.07252908]
[1759511659213,2.92683716,4527.7,4527.0,2.49765908]
[1759511659414,2.92683716,4527.4,4527.0,0.46985908]
[1759511659711,4.90593716,4527.5,4527.0,0.46985908]
[1759511659911,1.9791,4527.5,4527.1,2.0278]
[1759511660222,0.00269723,4527.8,4527.7,2.0278]
[1759511660824,0.00269723,4527.8,4527.7,2.0978]
[1759511661218,0.00269723,4527.8,4527.7,2.26398951]
[1759511661418,0.00269723,4527.8,4527.7,2.0978]
[1759511661619,0.00269723,4527.8,4527.7,7.0978]
[1759511662516,0.00269723,4527.8,4527.7,2.0278]
[1759511662714,0.39731,4527.3,4527.0,2.03032908]
[1759511662920,1.9791,4527.1,4527.0,0.00252908]
[1759511663321,4.83645802,4527.1,4527.0,0.00252908]
[1759511664122,9.83645802,4527.1,4527.0,0.00252908]
[1759511664326,2.7472,4527.0,4526.2,0.07]
[1759511664529,0.39737,4526.6,4525.9,3.60523]
[1759511664721,1.9791,4526.6,4526.0,0.07]
[1759511664916,2.88422879,4526.5,4526.0,0.07]
[1759511665116,0.8381,4527.5,4526.4,3.2078]
[1759511665325,1.9791,4526.6,4526.4,3.28042691]
[1759511665626,2.83043192,4526.9,4526.4,0.00262691]
[1759511665627,1.9791,4526.5,4526.4,0.00262691]
[1759511666715,2.813,4526.5,4526.4,0.00262691]
[1759511666920,13.87610954,4526.5,4526.4,0.00262691]
[1759511667328,0.39744,4525.8,4525.4,3.2078]
[1759511667516,2.0462,4525.0,4524.8,3.2078]
[1759511667723,2.44371,4525.0,4524.6,0.07]
[1759511667919,2.0462,4524.8,4524.7,0.07]
[1759511668225,0.39753,4524.7,4524.3,3.2078]
[1759511668526,4.98331283,4524.8,4524.3,3.2078]
[1759511668527,2.0462,4524.6,4524.3,3.20950775]
[1759511668726,0.00223609,4524.6,4524.3,5.70186775]
[1759511669116,0.00223609,4524.6,4524.3,3.76984915]
[1759511669626,0.00223609,4524.6,4524.5,2.0948]
[1759511670225,0.00223609,4524.6,4524.5,2.9644]
[1759511671627,0.00223609,4524.6,4524.5,2.1648]
[1759511672326,0.39977609,4524.6,4524.5,2.1648]
[1759511672528,2.00573609,4524.6,4524.5,0.07]
[1759511673032,0.00223609,4524.6,4524.5,2.9223]
[1759511673323,3.2638,4526.2,4525.5,2.41596]
[1759511673523,3.2638,4526.2,4525.6,0.07]
[1759511673727,2.83601993,4526.1,4525.7,2.0185]
[1759511673926,3.2078,4526.2,4525.6,3.67525]
[1759511674126,5.2113,4526.8,4525.9,2.0185]
[1759511674324,5.21298106,4526.8,4526.0,0.07]
[1759511674525,2.0035,4526.0,4525.6,3.2078]
[1759511674732,2.0035,4525.8,4525.6,3.2078]
[1759511675029,0.39743,4525.9,4525.8,2.0185]
[1759511675232,2.7805,4526.5,4525.8,2.0185]
[1759511675419,2.0035,4525.7,4525.6,3.2078]
[1759511675829,2.40098,4525.3,4525.2,0.07]
[1759511677126,0.39756,4524.4,4524.3,3.99794605]
[1759511677328,2.40106,4524.4,4524.3,3.20950775]
[1759511677524,2.40106,4524.4,4524.3,3.27950775]
[1759511677727,2.40106,4524.4,4524.3,0.07170775]
[1759511678232,2.40106,4524.4,4524.3,0.00170775]
[1759511678734,2.0035,4523.9,4523.6,0.7884383]
[1759511678925,3.2078,4523.9,4523.4,0.7884383]
[1759511679129,2.40116,4523.3,4523.2,0.07]
[1759511679636,0.39767,4523.2,4523.0,0.7884383]
[1759511679837,0.00238301,4523.3,4523.1,0.07]
[1759511680128,2.40354301,4523.3,4523.1,0.07]
[1759511680333,2.40354301,4523.3,4523.1,2.0885]
[1759511680535,2.40354301,4523.3,4523.1,0.07]
[1759511680834,1.98777,4524.6,4523.3,2.0185]
[1759511680835,3.2078,4524.4,4523.3,2.0185]
[1759511681028,3.2078,4524.4,4523.7,2.0185]
[1759511681333,3.2078,4524.4,4524.1,2.0185]
[1759511681537,3.2078,4524.4,4523.8,2.0185]
[1759511681832,0.39759,4524.0,4523.9,0.07]
[1759511682036,0.39758,4524.2,4523.9,0.07]
[1759511682334,5.21397903,4524.4,4524.0,2.0185]
[1759511682335,0.40024903,4524.4,4524.0,2.0185]
[1759511682533,2.0035,4524.3,4524.0,2.0185]
[1759511682833,0.00267903,4524.4,4524.0,2.0185]
[1759511683028,0.00267903,4524.4,4524.1,2.0185]
[1759511683239,0.40023903,4524.4,4524.2,0.07]
[1759511683428,0.40023903,4524.4,4524.3,0.07]
[1759511683629,2.40373903,4524.4,4524.3,0.07]
[1759511684132,2.00617903,4524.4,4524.3,0.07]
[1759511684636,2.00617903,4524.4,4524.3,2.48607]
[1759511684637,0.00267903,4524.4,4524.3,2.48607]
[1759511685737,0.00267903,4524.4,4524.3,2.0885]
[1759511686334,2.00617903,4524.4,4524.2,3.2078]
[1759511686531,0.00267903,4524.4,4524.3,2.0885]
[1759511686730,0.00267903,4524.4,4524.3,0.07]
[1759511686930,0.00267903,4524.4,4524.3,2.0885]
[1759511687631,0.00267903,4524.4,4524.3,2.0185]
[1759511687941,2.4011,4523.9,4523.7,2.0185]
[1759511688236,2.4011,4523.9,4523.8,0.07]
[1759511688436,0.3976,4523.9,4523.8,0.07]
[1759511688738,2.4011,4523.9,4523.8,0.07]
[1759511689233,0.39762,4523.7,4523.6,3.2078]
[1759511689434,2.40114,4523.5,4523.3,2.80765624]
[1759511689639,3.32709191,4523.9,4523.5,2.0185]
[1759511689834,0.39762,4523.7,4523.5,2.0185]
[1759511690037,0.39763,4523.6,4523.5,2.0185]
[1759511690239,3.32914643,4523.6,4523.2,2.80765624]
[1759511690536,2.0035,4523.4,4523.3,0.07]
[1759511691240,5.2113,4523.9,4523.3,0.07]
[1759511691539,2.40113,4523.6,4523.3,2.0885]
[1759511691745,2.0035,4523.4,4523.3,0.07]
[1759511692135,2.0035,4523.2,4523.1,3.2078]
[1759511692437,6.4404818,4523.2,4522.6,2.0185]
[1759511692631,0.39767,4523.1,4522.5,0.8338]
[1759511692838,6.0428118,4523.2,4522.5,0.8338]
[1759511693135,6.0428118,4523.2,4522.6,2.0185]
[1759511693136,2.8350118,4523.0,4522.6,2.0185]
[1759511693341,1.618,4523.0,4522.7,0.07]
[1759511693535,3.2078,4523.2,4522.7,0.07]
[1759511693732,5.22347,4523.2,4522.8,2.0185]
[1759511693936,2.86402486,4523.1,4522.8,2.0185]
[1759511694234,1.618,4522.9,4522.7,0.07]
[1759511694441,2.86402486,4523.1,4522.7,2.0885]
[1759511694628,2.87239623,4522.8,4522.7,2.0885]
[1759511694830,2.87239623,4523.1,4523.0,0.39768]
[1759511695135,2.90244046,4523.7,4523.0,1.30148]
[1759511695343,2.01563,4523.6,4523.2,2.0185]
[1759511695545,1.618,4523.6,4523.3,0.07]
[1759511695837,4.8258,4523.8,4523.3,0.07]
[1759511696042,3.2078,4523.8,4523.6,2.0185]
[1759511696246,3.2078,4523.8,4523.7,2.0885]
[1759511696446,4.52175209,4523.7,4523.4,0.79013207]
[1759511696633,2.90375209,4523.7,4523.6,2.0185]
[1759511696836,3.2078,4523.8,4523.5,0.07]
[1759511697236,2.92571346,4523.7,4523.4,0.79013207]
[1759511697441,2.92571346,4523.7,4523.4,0.07]
[1759511697442,1.618,4523.5,4523.4,0.07]
[1759511697645,2.01566,4523.3,4523.2,0.79013207]
[1759511697837,2.01569,4522.9,4522.8,0.79013207]
[1759511698037,2.01569,4522.9,4522.7,0.79013207]
[1759511698038,1.618,4522.8,4522.7,0.79013207]
[1759511698240,1.618,4522.8,4522.6,0.00271198]
[1759511698241,2.01571,4522.7,4522.6,0.00271198]
[1759511698534,4.84643013,4522.7,4522.6,0.00271198]
[1759511699342,4.91643013,4522.7,4522.6,0.00271198]
[1759511699745,9.91643013,4522.7,4522.6,0.00271198]
[1759511699948,2.83072013,4522.7,4522.6,2.02121198]
[1759511700435,4.44872013,4522.7,4522.6,0.00271198]
[1759511700834,2.83072013,4522.7,4522.6,0.00271198]
[1759511701041,4.44872013,4522.7,4522.6,0.00271198]
[1759511701243,9.44872013,4522.7,4521.8,0.79013207]
[1759511701541,1.618,4521.8,4521.0,3.71243207]
[1759511701734,1.618,4521.2,4520.5,0.79013207]
[1759511701935,3.2078,4520.8,4520.5,1.9357]
[1759511702145,0.39784,4521.3,4521.1,1.9357]
[1759511702439,0.00203251,4521.3,4521.2,1.9357]
[1759511702640,0.00203251,4521.3,4521.1,0.0023303]
[1759511702840,1.5754,4521.2,4521.1,0.0023303]
[1759511703041,2.88038819,4521.3,4521.2,1.9357]
[1759511703240,0.00203251,4521.3,4521.2,1.9357]
[1759511703459,0.00203251,4521.3,4521.2,2.40354]
[1759511703749,3.2078,4522.8,4522.2,2.33345]
[1759511703945,3.2078,4522.8,4522.2,1.9357]
[1759511704244,2.93038105,4522.7,4522.6,1.9357]
[1759511704448,4.7832,4523.7,4523.0,0.39768]
[1759511704644,2.93038105,4523.4,4523.1,0.07]
[1759511704945,2.93038105,4523.6,4523.2,1.9357]
[1759511705151,0.3977,4522.9,4522.7,0.79013207]
[1759511705441,0.3977,4522.9,4522.4,3.2078]
[1759511705442,2.93497004,4522.8,4522.4,3.2078]
[1759511705746,1.97314,4522.4,4522.2,0.07]
[1759511705941,0.39777,4522.1,4521.8,2.72583207]
[1759511706149,1.5754,4522.0,4521.8,0.07]
[1759511706345,2.81805857,4522.0,4521.9,1.9357]
[1759511706549,2.81805857,4522.0,4521.8,0.07]
[1759511706746,0.39781,4521.6,4521.4,0.79013207]
[1759511706946,3.2078,4521.7,4521.1,0.79246237]
[1759511707246,0.39784,4521.3,4521.1,0.0023303]
[1759511707441,2.91635497,4521.6,4521.2,1.9357]
[1759511707642,3.2078,4522.2,4521.1,5.1458303]
[1759511707847,3.2078,4522.8,4522.1,1.9357]
[1759511708144,3.2078,4522.4,4521.8,5.93363207]
[1759511708344,0.39779,4521.8,4521.6,0.79013207]
[1759511708545,0.39781,4521.6,4521.4,0.07]
[1759511708747,0.39782,4521.4,4521.2,0.07]
[1759511708940,0.39782,4521.4,4521.1,0.0023303]
[1759511708941,3.2078,4521.4,4521.1,0.0023303]
[1759511709146,2.838753,4521.3,4521.1,2.0080303]
[1759511709353,2.838753,4521.3,4521.2,1.9357]
[1759511710044,2.838753,4521.3,4521.1,0.0023303]
[1759511710246,1.97324,4521.2,4521.1,0.0023303]
[1759511710546,4.47326268,4521.2,4520.4,1.9357]
[1759511710751,2.82786268,4521.2,4520.8,0.39787]
[1759511710940,3.22570268,4521.2,4520.6,1.9357]
[1759511711143,3.60568,4520.9,4520.2,0.79013207]
[1759511711342,3.2078,4520.9,4520.4,1.9357]
[1759511711540,2.82804869,4520.8,4520.6,1.9357]
[1759511711739,2.82804869,4520.8,4520.5,0.07]
[1759511711740,1.97329,4520.7,4520.5,0.07]
[1759511711939,2.82804869,4520.8,4520.5,0.07]
[1759511712143,3.2078,4520.9,4520.6,1.9357]
[1759511712350,3.21992891,4520.8,4520.2,0.00202901]
[1759511712648,0.39791,4520.4,4520.2,0.00202901]
[1759511712849,1.5754,4520.3,4520.2,0.00202901]
[1759511713049,9.39744891,4520.3,4520.2,0.00202901]
[1759511713851,0.99484,4520.2,4519.0,0.17016148]
[1759511714155,3.2078,4519.4,4518.8,1.9357]
[1759511714565,1.5734,4520.0,4519.3,5.1435]
[1759511714566,3.2078,4520.0,4519.3,5.1435]
[1759511714854,2.86342934,4519.8,4519.6,1.9357]
[1759511715154,3.2078,4520.0,4519.3,0.00287299]
[1759511715155,0.398,4519.5,4519.3,0.00287299]
[1759511715343,1.5734,4519.4,4519.3,0.00287299]
[1759511715552,4.41670001,4519.4,4519.3,0.00287299]
[1759511716457,4.48670001,4519.4,4519.3,0.00287299]
[1759511717058,4.48670001,4519.4,4517.8,3.2078]
[1759511717059,0.99506,4519.2,4517.8,3.2078]
[1759511717349,0.39816,4517.7,4517.2,3.2078]
[1759511717548,3.2078,4517.9,4517.2,5.1435]
[1759511717748,2.87368085,4517.6,4517.5,2.7082]
[1759511717953,0.58575788,4520.0,4517.6,1.9357]
[1759511717954,3.2078,4518.4,4517.6,1.9357]
[1759511718147,3.2078,4518.4,4518.1,1.9357]
[1759511718349,3.2078,4518.4,4518.2,0.3981]
[1759511718548,3.2078,4519.2,4518.3,1.9357]
[1759511718755,3.2078,4519.2,4518.5,0.7725]
[1759511718952,4.43568706,4519.1,4518.3,1.9357]
[1759511719152,0.99512,4519.0,4518.3,1.9357]
[1759511719348,0.39809,4518.4,4518.3,1.9357]
[1759511719555,0.39811,4518.1,4518.0,0.7725]
[1759511719758,0.39816,4517.6,4517.5,1.93755402]
[1759511720058,8.10977632,4517.6,4517.5,0.00185402]
[1759511720249,13.10977632,4517.6,4517.5,0.00185402]
[1759511721552,13.10977632,4517.6,4516.0,0.94227533]
[1759511721553,0.39826,4516.5,4516.0,0.7725]
[1759511721763,0.39827,4516.4,4516.2,1.9357]
[1759511721955,2.88756595,4516.4,4516.0,0.7725]
[1759511722260,3.2078,4516.9,4516.1,2.40399]
[1759511722561,0.39825,4516.6,4516.2,1.9357]
[1759511722760,2.86299989,4516.8,4516.1,0.07256661]
[1759511722958,3.2078,4516.2,4514.5,0.7725]
[1759511723154,3.2078,4515.4,4515.0,0.7725]
[1759511723455,3.2768,4515.4,4515.0,1.9357]
[1759511723663,0.39841,4514.8,4514.6,1.9357]
[1759511723859,0.39845,4514.3,4514.2,1.9357]
[1759511724049,3.60625,4514.3,4514.2,0.00169747]
[1759511724355,0.39856,4513.0,4512.5,0.7725]
[1759511724751,2.91544799,4513.0,4512.5,0.7725]
[1759511725054,0.99614,4514.3,4512.5,0.7725]
[1759511725055,3.2078,4514.5,4513.7,0.39849]
[1759511725254,3.21055039,4514.5,4513.7,0.0016727]
[1759511725455,2.90679628,4514.2,4513.8,1.9357]
[1759511725655,0.39849,4513.9,4513.7,0.0016727]
[1759511725855,1.5705,4513.8,4513.7,0.0016727]
[1759511726052,2.90679628,4513.8,4513.7,5.1451727]
[1759511726255,0.07,4514.3,4513.7,5.1451727]
[1759511726661,2.82709,4514.2,4513.8,1.9092]
[1759511726859,1.5373,4513.8,4513.7,0.0016727]
[1759511727060,0.07,4514.0,4513.8,1.9092]
[1759511727268,2.88150014,4513.8,4513.7,0.0016727]
[1759511727465,0.07,4513.8,4513.7,0.0016727]
[1759511727763,0.39849,4513.8,4513.7,0.0016727]
[1759511727965,1.93586,4513.0,4512.1,1.9092]
[1759511728160,5.21366,4513.0,4512.1,1.9092]
[1759511728359,5.21366,4513.0,4512.9,8.95e-06]
[1759511728360,8.08918469,4513.0,4512.9,8.95e-06]
[1759511728555,13.08918469,4513.0,4512.9,8.95e-06]
[1759511728853,13.08918469,4513.0,4512.9,0.00273519]
[1759511729054,0.99657,4512.4,4511.6,1.9092]
[1759511729258,0.99645,4512.9,4511.2,1.9092]
[1759511729259,0.39864,4512.1,4511.2,1.9092]
[1759511729454,3.2078,4512.2,4511.2,1.9092]
[1759511729663,2.93476938,4512.0,4511.4,0.8149]
[1759511729860,0.46867,4511.9,4511.1,1.9092]
[1759511730061,0.3987,4511.5,4511.1,1.91173953]
[1759511730261,3.01734428,4511.8,4511.2,1.9092]
[1759511730462,0.39869,4511.6,4511.1,0.00253953]
[1759511730768,0.07,4511.8,4511.2,2.30792]
[1759511730965,0.07,4511.8,4511.2,1.9092]
[1759511731162,0.3987,4511.5,4511.1,0.00253953]
[1759511731356,0.07,4511.5,4511.4,2.7241]
[1759511731561,2.84525233,4511.4,4511.1,0.00253953]
[1759511731763,2.84525233,4511.5,4511.2,1.9092]
[1759511731958,0.07,4511.3,4511.2,1.9092]
[1759511732156,0.0019788,4511.3,4511.1,0.00253953]
[1759511732361,0.07,4511.2,4511.1,2.02913953]
[1759511732562,0.07,4511.2,4511.1,0.00253953]
[1759511732563,1.5261,4511.2,4511.1,0.00253953]
[1759511732763,0.39875,4510.9,4510.1,2.0266]
[1759511732968,0.39879,4510.4,4510.0,0.7832]
[1759511733156,0.07,4510.3,4509.6,6.0493]
[1759511733364,0.39885,4509.8,4508.9,2.0266]
[1759511733656,0.39885,4509.8,4508.8,3.2078]
[1759511733657,2.93494042,4509.7,4509.6,2.0266]
[1759511733970,0.07,4509.9,4509.6,0.00222869]
[1759511734163,2.93494042,4510.1,4509.7,2.0266]
[1759511734366,2.85884638,4509.8,4509.7,2.0266]
[1759511734566,2.85884638,4510.1,4509.8,2.0266]
[1759511734764,0.0019788,4511.3,4510.3,2.0266]
[1759511734967,0.0019788,4511.3,4511.2,2.0266]
[1759511735464,0.0019788,4511.3,4510.2,0.7832]
[1759511735465,2.94786258,4511.3,4510.3,2.0266]
[1759511735669,0.0019788,4511.3,4511.2,2.0266]
[1759511735859,0.0019788,4511.3,4510.7,5.2344]
[1759511736064,0.0019788,4511.3,4510.8,0.7832]
[1759511736467,0.0019788,4511.3,4510.9,2.0266]
[1759511736664,0.0019788,4511.3,4511.2,5.2344]
[1759511737077,0.0019788,4511.3,4511.2,5.63312]
[1759511737263,0.0019788,4511.3,4511.2,10.63312]
[1759511737462,3.2078,4512.9,4512.1,2.0266]
[1759511737666,3.2078,4512.9,4511.2,8.2078]
[1759511737667,2.0542,4512.3,4511.2,3.2078]
[1759511737967,2.0542,4511.3,4510.4,0.07]
[1759511738173,0.39874,4511.0,4510.4,0.07]
[1759511738375,0.00231432,4511.0,4510.4,0.07]
[1759511738771,0.00231432,4511.0,4510.9,2.0266]
[1759511740073,3.23713568,4511.0,4510.3,5.2344]
[1759511740268,4.89258568,4511.0,4510.3,5.2344]
[1759511740573,3.2078,4510.9,4510.2,2.0966]
[1759511740869,2.82420382,4510.8,4510.2,2.49541]
[1759511741073,2.82420382,4510.8,4510.2,2.8798]
[1759511741568,2.82420382,4510.8,4510.2,0.07]
[1759511741766,2.82420382,4510.8,4510.2,2.0966]
[1759511741968,2.89420382,4510.8,4510.2,3.27861]
[1759511742172,2.89420382,4510.8,4510.2,2.8798]
[1759511742473,0.39877,4510.7,4510.2,0.8532]
[1759511742669,0.39877,4510.7,4510.3,2.0266]
[1759511742866,3.29296382,4510.8,4510.3,2.0266]
[1759511743065,4.87840382,4510.8,4510.3,2.0266]
[1759511743266,4.87840382,4510.8,4510.2,0.07]
[1759511743267,2.82420382,4510.8,4510.2,0.07]
[1759511743466,2.82420382,4510.8,4510.1,2.0266]
[1759511743661,2.82420382,4510.8,4509.6,0.78542869]
[1759511743662,3.2078,4510.2,4509.6,0.00222869]
[1759511743867,0.07,4510.1,4509.6,0.00222869]
[1759511744165,5.262,4509.7,4509.6,0.00222869]
[1759511744467,8.16672865,4509.7,4509.6,0.00222869]
[1759511744872,8.16572865,4509.7,4509.6,0.00222869]
[1759511745072,2.0542,4509.1,4508.0,3.2078]
[1759511745265,2.0542,4508.2,4507.5,6.41665]
[1759511745468,2.1232,4508.2,4507.5,3.20885]
[1759511745663,2.0542,4508.0,4507.0,3.991]
[1759511745871,3.2078,4507.4,4506.7,2.0266]
[1759511746072,3.21025664,4507.4,4506.7,2.02848514]
[1759511746374,2.93332521,4507.3,4506.7,2.02848514]
[1759511746567,2.93332521,4507.3,4506.9,0.3991]
[1759511747064,2.93332521,4507.3,4507.0,2.0266]
[1759511747265,0.069,4507.2,4506.7,0.00188514]
[1759511747472,2.93332521,4507.3,4506.7,2.02848514]
[1759511747669,2.87747751,4507.1,4506.7,0.00188514]
[1759511747984,0.00245664,4507.4,4507.3,2.0266]
[1759511748270,0.00245664,4507.4,4507.3,5.2344]
[1759511748480,0.00245664,4507.4,4507.3,2.0266]
[1759511748667,6.12090057,4507.4,4506.7,0.00188514]
[1759511748976,5.262,4506.9,4506.7,0.00188514]
[1759511749273,4.90882321,4506.8,4505.6,5.2344]
[1759511749476,2.85462321,4506.8,4505.7,2.0266]
[1759511749664,3.2078,4507.0,4506.4,3.60694]
[1759511749869,3.2078,4507.0,4506.6,2.0266]
[1759511750073,2.85462321,4506.8,4506.7,2.0266]
[1759511750375,2.85462321,4506.8,4506.7,0.0019379]
[1759511750376,2.1242,4506.8,4506.7,0.0019379]
[1759511750569,3.2078,4507.0,4506.7,0.0019379]
[1759511750778,4.98584412,4506.8,4506.7,0.0019379]
[1759511750979,2.1232,4506.8,4506.7,0.0019379]
[1759511751175,7.1232,4506.8,4506.7,0.0019379]
[1759511751365,9.93380549,4506.8,4506.7,0.0019379]
[1759511751570,9.93380549,4506.8,4505.3,2.0266]
[1759511751571,2.0542,4506.4,4505.3,2.0266]
[1759511751873,3.2078,4506.2,4505.3,2.0266]
[1759511752078,2.87960549,4506.3,4505.3,2.0266]
[1759511752079,0.07,4506.1,4505.7,0.3992]
[1759511752267,2.8659304,4506.1,4506.0,3.2078]
[1759511752475,3.2078,4506.7,4506.5,0.39913]
[1759511752669,3.2078,4506.7,4506.1,2.0266]
[1759511752874,2.8659304,4506.6,4506.0,2.81186141]
[1759511753174,2.8659304,4506.6,4506.0,0.00206141]
[1759511753575,0.4923,4506.5,4506.0,0.00206141]
[1759511753778,2.0542,4506.4,4506.0,0.00206141]
[1759511753976,2.82512409,4506.4,4506.0,0.00206141]
[1759511754179,2.0542,4506.3,4506.0,0.00206141]
[1759511754373,2.0542,4506.1,4506.0,0.00206141]
[1759511754775,4.97442367,4506.1,4506.0,0.00206141]
[1759511754978,8.18222367,4506.1,4506.0,0.00206141]
[1759511755485,4.97442367,4506.1,4506.0,0.00206141]
[1759511755886,5.37359367,4506.1,4506.0,0.00206141]
[1759511756084,5.37359367,4506.1,4503.5,1.78171]
[1759511756085,2.0542,4505.3,4504.2,3.2078]
[1759511756290,3.67706,4505.2,4504.2,3.2078]
[1759511756587,5.262,4504.7,4503.6,3.2078]
[1759511756779,0.07,4504.6,4503.6,3.2078]
[1759511756975,2.94490693,4504.6,4503.6,3.20997447]
[1759511757180,0.39932,4504.5,4503.6,3.20997447]
[1759511757579,2.85484869,4504.4,4503.6,3.20997447]
[1759511757781,2.85484869,4504.4,4504.3,3.2078]
[1759511757979,2.85484869,4504.5,4504.4,2.42593]
[1759511758280,0.07,4505.1,4504.4,2.0266]
[1759511758482,2.92606239,4505.3,4504.4,2.0266]
[1759511758682,2.92606239,4505.0,4504.9,2.0266]
[1759511758884,3.2078,4506.0,4504.9,2.0266]
[1759511758885,0.07,4505.7,4504.9,2.0266]
[1759511759091,2.92606239,4505.3,4504.8,3.2078]
[1759511759384,2.90981161,4505.6,4504.9,2.0266]
[1759511759601,2.90981161,4505.2,4504.8,3.60709]
[1759511759889,2.90981161,4505.3,4505.2,2.0266]
[1759511760194,2.0542,4506.5,4505.1,0.39926]
[1759511760195,2.0542,4507.1,4505.6,2.0266]
[1759511760377,0.39909,4507.1,4506.9,5.2344]
[1759511760684,5.75387231,4507.0,4506.9,0.00214898]
[1759511760888,2.84037231,4507.0,4506.9,2.02874898]
[1759511761185,0.00245664,4507.4,4506.7,3.2078]
[1759511761381,0.00245664,4507.4,4503.7,3.2078]
[1759511761382,0.7893,4506.6,4503.7,3.2078]
[1759511761579,0.7893,4506.6,4503.2,0.07]
[1759511761580,2.0542,4505.3,4504.0,3.2078]
[1759511761776,5.262,4505.3,4504.6,3.2078]
[1759511761991,2.83118046,4505.2,4504.3,0.39933]
[1759511762284,3.2078,4504.4,4504.3,0.00240837]
[1759511762482,2.83118046,4505.2,4504.3,0.00240837]
[1759511762483,2.83118046,4505.2,4504.8,0.39928]
[1759511762689,1.8595,4505.7,4504.9,0.033]
[1759511762981,0.07,4506.7,4504.9,0.033]
[1759511762982,5.0673,4506.4,4505.5,0.39922]
[1759511763183,5.0673,4506.9,4505.8,0.99801]
[1759511763380,3.2078,4507.0,4506.8,1.7047]
[1759511763577,3.2078,4507.0,4506.9,0.07]
[1759511763779,3.2078,4507.8,4506.9,0.07]
[1759511763979,1.8595,4508.3,4506.9,1.7047]
[1759511763980,3.2078,4507.0,4506.9,1.7047]
[1759511764180,3.2078,4507.6,4507.2,0.39907]
[1759511764382,3.2078,4508.1,4507.3,1.7047]
[1759511764576,1.8595,4508.6,4507.6,0.39903]
[1759511764777,2.2586,4507.0,4506.9,0.069]
[1759511764985,3.2078,4507.5,4507.2,0.39907]
[1759511765180,3.2078,4507.5,4507.0,0.39909]
[1759511765387,3.2095379,4507.5,4507.1,1.7022]
[1759511765578,3.2095379,4507.5,4507.0,0.00163088]
[1759511765579,3.2095379,4507.5,4507.2,0.069]
[1759511765783,3.2095379,4507.5,4507.4,2.10126]
[1759511766289,3.2078,4508.1,4507.9,1.7022]
[1759511766587,3.2078,4508.3,4508.1,1.7022]
[1759511766882,3.2078,4508.8,4508.1,2.10119]
[1759511767083,3.2078,4508.8,4508.4,1.7022]
[1759511767282,3.21029895,4508.8,4508.7,1.7022]
[1759511767484,3.21029895,4508.8,4508.7,0.069]
[1759511768177,0.00249895,4508.8,4508.7,7.17014]
[1759511768382,0.39894,4508.7,4508.1,36.3122]
[1759511768582,0.00249895,4508.8,4508.2,0.069]
[1759511768783,0.00249895,4508.8,4508.6,0.39895]
[1759511768988,0.00249895,4508.8,4508.7,1.7712]
[1759511769292,0.00249895,4508.8,4508.7,41.3802]